[Event "Early-Titled-Tuesday-Blitz-March-12-2024"]
[Site "Chess.com"]
[Date "2024.03.12"]
[Round "11"]
[White "AlessiaSanteramo"]
[Black "Happy1712Drummer"]
[Result "0-1"]
[WhiteElo "2256"]
[BlackElo "2355"]
[TimeControl "180+1"]
[EndTime "10:02:38 PDT"]
[Termination "Happy1712Drummer won by resignation"]

1. e4 {[%clk 0:02:40.1]} 1... c5 {[%clk 0:02:59.7]} 2. Nf3 {[%clk 0:02:39.9]}
2... e6 {[%clk 0:02:59.7]} 3. g3 {[%clk 0:02:39.4]} 3... d5 {[%clk 0:02:48.9]}
4. exd5 {[%clk 0:02:36.4]} 4... exd5 {[%clk 0:02:49.2]} 5. d4 {[%clk 0:02:34.2]}
5... Nc6 {[%clk 0:02:47.7]} 6. Bg2 {[%clk 0:02:33.7]} 6... Nf6 {[%clk
0:02:38.9]} 7. O-O {[%clk 0:02:33.4]} 7... Be7 {[%clk 0:02:27.6]} 8. Nc3 {[%clk
0:02:14.4]} 8... O-O {[%clk 0:02:25]} 9. Be3 {[%clk 0:02:14.3]} 9... cxd4 {[%clk
0:02:19.3]} 10. Nxd4 {[%clk 0:02:13.8]} 10... Bg4 {[%clk 0:02:11.9]} 11. Qd2
{[%clk 0:02:07.7]} 11... Re8 {[%clk 0:02:03.5]} 12. h3 {[%clk 0:02:06.9]} 12...
Bd7 {[%clk 0:01:55.7]} 13. Rad1 {[%clk 0:02:04.3]} 13... Rc8 {[%clk 0:01:50.9]}
14. Kh2 {[%clk 0:01:54.2]} 14... Ne5 {[%clk 0:01:44.2]} 15. Nxd5 {[%clk
0:01:46.7]} 15... Nxd5 {[%clk 0:01:39.8]} 16. Bxd5 {[%clk 0:01:46.2]} 16... Bxh3
{[%clk 0:01:27.2]} 17. Bxf7+ {[%clk 0:01:34.8]} 17... Kxf7 {[%clk 0:01:25.6]}
18. Kxh3 {[%clk 0:01:34.8]} 18... Qd7+ {[%clk 0:01:26.1]} 19. Kg2 {[%clk
0:01:31.5]} 19... Qd5+ {[%clk 0:01:21.3]} 20. f3 {[%clk 0:01:25.8]} 20... Nc4
{[%clk 0:01:11]} 21. Qe2 {[%clk 0:01:21.6]} 21... Bc5 {[%clk 0:01:08.9]} 22. Nf5
{[%clk 0:00:55.4]} 22... Nxe3+ {[%clk 0:00:48.3]} 23. Nxe3 {[%clk 0:00:55.3]}
23... Qe6 {[%clk 0:00:48]} 24. Qd3 {[%clk 0:00:36.1]} 24... Qxe3 {[%clk
0:00:37]} 25. Qxh7 {[%clk 0:00:27.9]} 25... Qe2+ {[%clk 0:00:34.2]} 26. Kh3
{[%clk 0:00:26.5]} 26... Rh8 {[%clk 0:00:33.5]} 27. Rd7+ {[%clk 0:00:26.4]}
27... Ke6 {[%clk 0:00:31.2]} 28. Rc7 {[%clk 0:00:23.7]} 28... Rxh7+ {[%clk
0:00:30.2]} 0-1

[Event "Early-Titled-Tuesday-Blitz-March-12-2024"]
[Site "Chess.com"]
[Date "2024.03.12"]
[Round "11"]
[White "martinmena"]
[Black "margarita_2703"]
[Result "1-0"]
[WhiteElo "2278"]
[BlackElo "2342"]
[TimeControl "180+1"]
[EndTime "10:02:38 PDT"]
[Termination "martinmena won by resignation"]

1. c4 {[%clk 0:02:55.2]} 1... h6 {[%clk 0:02:55.2]} 2. g3 {[%clk 0:02:51]} 2...
c6 {[%clk 0:02:30.3]} 3. Bg2 {[%clk 0:02:50.3]} 3... d5 {[%clk 0:02:31.2]} 4.
Nf3 {[%clk 0:02:49]} 4... Nf6 {[%clk 0:02:28.5]} 5. O-O {[%clk 0:02:46.2]} 5...
dxc4 {[%clk 0:02:28.9]} 6. a4 {[%clk 0:02:43.2]} 6... Bf5 {[%clk 0:02:21.6]} 7.
Nc3 {[%clk 0:02:40.7]} 7... e6 {[%clk 0:02:20]} 8. Ne5 {[%clk 0:02:39.9]} 8...
Qd4 {[%clk 0:02:19.6]} 9. Nf3 {[%clk 0:02:32.4]} 9... Qc5 {[%clk 0:02:16.1]} 10.
b3 {[%clk 0:02:08]} 10... cxb3 {[%clk 0:02:02.4]} 11. Qxb3 {[%clk 0:02:07.3]}
11... Qb6 {[%clk 0:01:49]} 12. Qc4 {[%clk 0:02:00.9]} 12... Nbd7 {[%clk
0:01:40.7]} 13. a5 {[%clk 0:01:50.5]} 13... Qc7 {[%clk 0:01:36]} 14. a6 {[%clk
0:01:45.8]} 14... b6 {[%clk 0:01:33.1]} 15. Nd4 {[%clk 0:01:37.7]} 15... Rc8
{[%clk 0:01:17.7]} 16. Nxc6 {[%clk 0:01:26.8]} 16... Bc5 {[%clk 0:01:07.4]} 17.
Nb5 {[%clk 0:01:13.9]} 17... Qxc6 {[%clk 0:00:57.9]} 18. Bxc6 {[%clk 0:01:11.5]}
18... Rxc6 {[%clk 0:00:58.8]} 19. Qa4 {[%clk 0:01:07.8]} 19... Rc8 {[%clk
0:00:52.6]} 20. Nxa7 {[%clk 0:01:00.2]} 20... Ra8 {[%clk 0:00:43.6]} 21. Nb5
{[%clk 0:00:59.7]} 21... O-O {[%clk 0:00:42.1]} 22. a7 {[%clk 0:00:58.1]} 22...
Rfc8 {[%clk 0:00:41.4]} 23. Ba3 {[%clk 0:00:55.8]} 23... Be4 {[%clk 0:00:34.5]}
24. Bxc5 {[%clk 0:00:49.9]} 24... Nxc5 {[%clk 0:00:35.4]} 25. Qa3 {[%clk
0:00:47.6]} 25... Nd5 {[%clk 0:00:30.5]} 26. Nd6 {[%clk 0:00:43.6]} 26... Rc7
{[%clk 0:00:28.4]} 27. d4 {[%clk 0:00:39.2]} 1-0

[Event "Early-Titled-Tuesday-Blitz-March-12-2024"]
[Site "Chess.com"]
[Date "2024.03.12"]
[Round "11"]
[White "alexrustemov"]
[Black "GeorgiosSouleidis"]
[Result "1-0"]
[WhiteElo "2853"]
[BlackElo "2683"]
[TimeControl "180+1"]
[EndTime "10:02:39 PDT"]
[Termination "alexrustemov won by resignation"]

1. d4 {[%clk 0:02:56.8]} 1... Nf6 {[%clk 0:02:59.8]} 2. c4 {[%clk 0:02:56.6]}
2... g6 {[%clk 0:03:00.3]} 3. g3 {[%clk 0:02:53.4]} 3... Bg7 {[%clk 0:03:00.2]}
4. Bg2 {[%clk 0:02:53.8]} 4... O-O {[%clk 0:03:01.1]} 5. Nc3 {[%clk 0:02:52.4]}
5... d6 {[%clk 0:03:01.7]} 6. Nf3 {[%clk 0:02:52.3]} 6... Nc6 {[%clk 0:03:00.8]}
7. h3 {[%clk 0:02:52.1]} 7... e5 {[%clk 0:02:56.2]} 8. Be3 {[%clk 0:02:51.8]}
8... Re8 {[%clk 0:02:49.3]} 9. O-O {[%clk 0:02:49]} 9... Bd7 {[%clk 0:02:49.3]}
10. dxe5 {[%clk 0:02:43]} 10... dxe5 {[%clk 0:02:46.1]} 11. Rc1 {[%clk
0:02:32.1]} 11... h5 {[%clk 0:02:29.4]} 12. Qd2 {[%clk 0:02:30.1]} 12... e4
{[%clk 0:02:17.4]} 13. Ng5 {[%clk 0:02:22.8]} 13... Bf5 {[%clk 0:02:16]} 14.
Rfd1 {[%clk 0:02:21.6]} 14... Qc8 {[%clk 0:02:01.7]} 15. Nd5 {[%clk 0:02:19]}
15... Nh7 {[%clk 0:01:53.4]} 16. Kh2 {[%clk 0:02:08.1]} 16... Ne5 {[%clk
0:01:27.2]} 17. Nxh7 {[%clk 0:02:02.5]} 17... Kxh7 {[%clk 0:01:26.7]} 18. Bg5
{[%clk 0:02:03.1]} 18... c6 {[%clk 0:01:02.6]} 19. Nf6+ {[%clk 0:02:02.3]} 19...
Bxf6 {[%clk 0:01:03.1]} 20. Bxf6 {[%clk 0:02:03]} 20... Qe6 {[%clk 0:01:03.3]}
21. Qg5 {[%clk 0:01:55.3]} 21... Nd7 {[%clk 0:00:46.9]} 22. Bc3 {[%clk 0:01:53]}
22... f6 {[%clk 0:00:42.2]} 23. Qf4 {[%clk 0:01:41.7]} 23... g5 {[%clk
0:00:29.4]} 24. Qc7 {[%clk 0:01:40.6]} 24... Rab8 {[%clk 0:00:17.4]} 25. Rd6
{[%clk 0:01:34.6]} 25... Qe7 {[%clk 0:00:04.2]} 26. Rcd1 {[%clk 0:01:32.5]}
26... Ne5 {[%clk 0:00:01.6]} 27. Qxe7+ {[%clk 0:01:30.5]} 27... Rxe7 {[%clk
0:00:02.5]} 28. Rxf6 {[%clk 0:01:30.8]} 28... Bg6 {[%clk 0:00:01.7]} 29. Rdd6
{[%clk 0:01:09.9]} 29... Rbe8 {[%clk 0:00:01.4]} 30. Bxe5 {[%clk 0:01:08.9]}
30... Rxe5 {[%clk 0:00:01.5]} 31. Rxg6 {[%clk 0:01:09.1]} 31... e3 {[%clk
0:00:02.4]} 32. f4 {[%clk 0:01:06.5]} 32... gxf4 {[%clk 0:00:02.1]} 33. gxf4
{[%clk 0:01:06.5]} 33... R5e7 {[%clk 0:00:02.7]} 34. Bf3 {[%clk 0:01:01.1]} 1-0

[Event "Early-Titled-Tuesday-Blitz-March-12-2024"]
[Site "Chess.com"]
[Date "2024.03.12"]
[Round "11"]
[White "Sattarov_Bobur"]
[Black "Sam_ChessMood"]
[Result "1-0"]
[WhiteElo "2830"]
[BlackElo "2945"]
[TimeControl "180+1"]
[EndTime "10:02:43 PDT"]
[Termination "Sattarov_Bobur won by checkmate"]

1. e4 {[%clk 0:03:00.9]} 1... c5 {[%clk 0:02:59.2]} 2. Nf3 {[%clk 0:03:00.4]}
2... Nc6 {[%clk 0:02:58.3]} 3. d4 {[%clk 0:03:00.3]} 3... cxd4 {[%clk
0:02:58.6]} 4. Nxd4 {[%clk 0:03:01.2]} 4... Qb6 {[%clk 0:02:58.9]} 5. Nb3 {[%clk
0:03:01]} 5... Nf6 {[%clk 0:02:58.2]} 6. Nc3 {[%clk 0:03:01.6]} 6... e6 {[%clk
0:02:58.3]} 7. Be3 {[%clk 0:03:02.2]} 7... Qc7 {[%clk 0:02:56.8]} 8. f4 {[%clk
0:03:02.8]} 8... d6 {[%clk 0:02:51.9]} 9. Bd3 {[%clk 0:03:03.2]} 9... a6 {[%clk
0:02:51.3]} 10. Qf3 {[%clk 0:03:03.1]} 10... Be7 {[%clk 0:02:51.5]} 11. O-O
{[%clk 0:03:03.2]} 11... O-O {[%clk 0:02:50.8]} 12. g4 {[%clk 0:02:59.8]} 12...
Nb4 {[%clk 0:02:37.4]} 13. g5 {[%clk 0:02:58.8]} 13... Nd7 {[%clk 0:02:36.4]}
14. f5 {[%clk 0:02:51.8]} 14... Ne5 {[%clk 0:02:31.1]} 15. Qg3 {[%clk
0:02:51.4]} 15... Re8 {[%clk 0:01:48.9]} 16. Bd4 {[%clk 0:02:42.4]} 16... Bf8
{[%clk 0:01:43.7]} 17. g6 {[%clk 0:02:36.6]} 17... f6 {[%clk 0:01:25.9]} 18.
gxh7+ {[%clk 0:02:32.8]} 18... Kh8 {[%clk 0:01:26]} 19. Ne2 {[%clk 0:02:32.1]}
19... exf5 {[%clk 0:01:21.8]} 20. Nf4 {[%clk 0:02:29.8]} 20... g5 {[%clk
0:01:16.8]} 21. Bxe5 {[%clk 0:02:28.5]} 21... dxe5 {[%clk 0:01:15.3]} 22. Ng6+
{[%clk 0:02:27.6]} 22... Kxh7 {[%clk 0:01:15.7]} 23. exf5 {[%clk 0:02:27.4]}
23... Bh6 {[%clk 0:01:08.4]} 24. Nd2 {[%clk 0:02:24.1]} 24... Kg7 {[%clk
0:00:46.6]} 25. Ne4 {[%clk 0:02:21.9]} 25... Nxd3 {[%clk 0:00:31.5]} 26. cxd3
{[%clk 0:02:21.8]} 26... Kf7 {[%clk 0:00:26.1]} 27. Qe3 {[%clk 0:02:00.2]} 27...
Bd7 {[%clk 0:00:20.6]} 28. h4 {[%clk 0:01:52.2]} 28... Bc6 {[%clk 0:00:16.7]}
29. Rac1 {[%clk 0:01:47.6]} 29... Qd7 {[%clk 0:00:14.3]} 30. Rxc6 {[%clk
0:01:00.3]} 30... bxc6 {[%clk 0:00:13.1]} 31. hxg5 {[%clk 0:01:00.6]} 31... Bxg5
{[%clk 0:00:09.9]} 32. Nxg5+ {[%clk 0:01:00.2]} 32... fxg5 {[%clk 0:00:10.6]}
33. Qxg5 {[%clk 0:01:00.7]} 33... Qd4+ {[%clk 0:00:06.1]} 34. Kg2 {[%clk
0:00:58.8]} 34... Rg8 {[%clk 0:00:03]} 35. Qe7# {[%clk 0:00:58.6]} 1-0

[Event "Early-Titled-Tuesday-Blitz-March-12-2024"]
[Site "Chess.com"]
[Date "2024.03.12"]
[Round "11"]
[White "BeardedNM"]
[Black "Bkmzzzzz"]
[Result "1/2-1/2"]
[WhiteElo "2252"]
[BlackElo "2387"]
[TimeControl "180+1"]
[EndTime "10:02:47 PDT"]
[Termination "Game drawn by repetition"]

1. e4 {[%clk 0:03:00.9]} 1... d6 {[%clk 0:02:59.9]} 2. d4 {[%clk 0:02:59.7]}
2... Nf6 {[%clk 0:03:00.3]} 3. Nc3 {[%clk 0:03:00.4]} 3... e5 {[%clk 0:03:00.7]}
4. Nf3 {[%clk 0:02:59.3]} 4... Nbd7 {[%clk 0:03:00.1]} 5. Be3 {[%clk 0:02:52.5]}
5... Be7 {[%clk 0:02:58.2]} 6. h3 {[%clk 0:02:52.5]} 6... c6 {[%clk 0:02:58.2]}
7. a4 {[%clk 0:02:51.6]} 7... O-O {[%clk 0:02:57.4]} 8. g4 {[%clk 0:02:48.5]}
8... a6 {[%clk 0:02:46.5]} 9. Bg2 {[%clk 0:02:42.2]} 9... Rb8 {[%clk 0:02:45.6]}
10. a5 {[%clk 0:02:41]} 10... Qc7 {[%clk 0:02:36.4]} 11. O-O {[%clk 0:02:36.5]}
11... b5 {[%clk 0:02:34.7]} 12. axb6 {[%clk 0:02:36.1]} 12... Nxb6 {[%clk
0:02:34.4]} 13. b3 {[%clk 0:02:31.6]} 13... Nfd7 {[%clk 0:02:31]} 14. Re1 {[%clk
0:02:12.1]} 14... Bb7 {[%clk 0:02:29.2]} 15. Nd2 {[%clk 0:01:43.5]} 15... Rfe8
{[%clk 0:02:27.6]} 16. Bf1 {[%clk 0:01:37]} 16... Ra8 {[%clk 0:02:25.3]} 17. Na4
{[%clk 0:01:10.7]} 17... Bf6 {[%clk 0:02:17.6]} 18. Nxb6 {[%clk 0:01:05.9]}
18... Nxb6 {[%clk 0:02:18.5]} 19. dxe5 {[%clk 0:01:03.4]} 19... Bxe5 {[%clk
0:02:18.3]} 20. Bxb6 {[%clk 0:01:03.4]} 20... Qxb6 {[%clk 0:02:17.4]} 21. Nc4
{[%clk 0:01:04]} 21... Qc7 {[%clk 0:01:58.3]} 22. Nxe5 {[%clk 0:00:59.2]} 22...
dxe5 {[%clk 0:01:59.2]} 23. Qd2 {[%clk 0:00:54.4]} 23... Red8 {[%clk 0:01:54.8]}
24. Qa5 {[%clk 0:00:54.4]} 24... Qxa5 {[%clk 0:01:54]} 25. Rxa5 {[%clk
0:00:55.3]} 25... f6 {[%clk 0:01:53.7]} 26. Rea1 {[%clk 0:00:50.7]} 26... Ra7
{[%clk 0:01:44.6]} 27. Bxa6 {[%clk 0:00:45]} 27... Bxa6 {[%clk 0:01:34.7]} 28.
Rxa6 {[%clk 0:00:45.9]} 28... Rxa6 {[%clk 0:01:35]} 29. Rxa6 {[%clk 0:00:45.4]}
29... Rc8 {[%clk 0:01:35.7]} 30. Kf1 {[%clk 0:00:42.1]} 30... h6 {[%clk
0:01:33.4]} 31. Ke2 {[%clk 0:00:41.8]} 31... Kf7 {[%clk 0:01:33.9]} 32. Kd3
{[%clk 0:00:41.7]} 32... Ke6 {[%clk 0:01:34.3]} 33. Kc4 {[%clk 0:00:40.5]} 33...
Kd6 {[%clk 0:01:30.8]} 34. b4 {[%clk 0:00:32.4]} 34... Rb8 {[%clk 0:01:29.8]}
35. Ra7 {[%clk 0:00:27.3]} 35... Rg8 {[%clk 0:01:28.3]} 36. c3 {[%clk
0:00:17.8]} 36... h5 {[%clk 0:01:23.2]} 37. gxh5 {[%clk 0:00:14.8]} 37... Rh8
{[%clk 0:01:22.7]} 38. Rxg7 {[%clk 0:00:11.3]} 38... Rxh5 {[%clk 0:01:23.1]} 39.
Rg6 {[%clk 0:00:11.6]} 39... Ke6 {[%clk 0:01:22.7]} 40. Kc5 {[%clk 0:00:10.9]}
40... Rxh3 {[%clk 0:01:22.9]} 41. c4 {[%clk 0:00:11]} 41... Rc3 {[%clk
0:01:20.1]} 42. Rg8 {[%clk 0:00:08.4]} 42... Rc2 {[%clk 0:01:20.2]} 43. f3
{[%clk 0:00:08.1]} 43... Rc3 {[%clk 0:01:20.3]} 44. Rg3 {[%clk 0:00:07.9]} 44...
Kd7 {[%clk 0:01:19.1]} 45. Rg7+ {[%clk 0:00:06.2]} 45... Ke6 {[%clk 0:01:19.4]}
46. Rg3 {[%clk 0:00:05.3]} 46... Kd7 {[%clk 0:01:19.3]} 47. Rg7+ {[%clk
0:00:03.9]} 47... Ke6 {[%clk 0:01:19.7]} 48. Rg3 {[%clk 0:00:04.3]} 1/2-1/2

[Event "Early-Titled-Tuesday-Blitz-March-12-2024"]
[Site "Chess.com"]
[Date "2024.03.12"]
[Round "11"]
[White "Chessdude1987"]
[Black "Chessmissile07"]
[Result "0-1"]
[WhiteElo "2432"]
[BlackElo "2900"]
[TimeControl "180+1"]
[EndTime "10:02:49 PDT"]
[Termination "Chessmissile07 won on time"]

1. e4 {[%clk 0:03:00.9]} 1... a6 {[%clk 0:03:00.9]} 2. d4 {[%clk 0:03:00.5]}
2... d6 {[%clk 0:03:00.1]} 3. Bd3 {[%clk 0:02:59.2]} 3... g6 {[%clk 0:02:55.8]}
4. Nf3 {[%clk 0:02:57.5]} 4... Bg7 {[%clk 0:02:53.5]} 5. Nc3 {[%clk 0:02:50.8]}
5... Nf6 {[%clk 0:02:52.8]} 6. O-O {[%clk 0:02:45.7]} 6... O-O {[%clk 0:02:53]}
7. h3 {[%clk 0:02:42.7]} 7... b5 {[%clk 0:02:52.9]} 8. Ne2 {[%clk 0:02:33.6]}
8... Bb7 {[%clk 0:02:52.3]} 9. Ng3 {[%clk 0:02:33.5]} 9... Nbd7 {[%clk 0:02:52]}
10. Be3 {[%clk 0:02:28.6]} 10... c5 {[%clk 0:02:51.1]} 11. c3 {[%clk 0:02:28.7]}
11... e5 {[%clk 0:02:44.9]} 12. Qd2 {[%clk 0:02:23.4]} 12... Qe7 {[%clk
0:02:31.5]} 13. d5 {[%clk 0:02:13.3]} 13... Bxd5 {[%clk 0:02:07.4]} 14. exd5
{[%clk 0:02:08.2]} 14... e4 {[%clk 0:02:08.3]} 15. Nxe4 {[%clk 0:01:39.5]} 15...
Nxe4 {[%clk 0:02:08.3]} 16. Bxe4 {[%clk 0:01:33.4]} 16... Qxe4 {[%clk
0:02:09.2]} 17. Ng5 {[%clk 0:01:26.8]} 17... Qf5 {[%clk 0:02:02.2]} 18. g4
{[%clk 0:01:19]} 18... Qf6 {[%clk 0:01:57.6]} 19. Ne4 {[%clk 0:01:11.6]} 19...
Qe7 {[%clk 0:01:57.6]} 20. f3 {[%clk 0:01:06.7]} 20... Ne5 {[%clk 0:01:57.9]}
21. Qg2 {[%clk 0:00:59.6]} 21... f5 {[%clk 0:01:47.8]} 22. gxf5 {[%clk
0:00:48.4]} 22... Rxf5 {[%clk 0:01:48.7]} 23. Rae1 {[%clk 0:00:26.2]} 23...
Nxf3+ {[%clk 0:01:00.7]} 24. Rxf3 {[%clk 0:00:24.6]} 24... Qxe4 {[%clk 0:01:01]}
25. Rxf5 {[%clk 0:00:18.4]} 25... Qxf5 {[%clk 0:01:01.4]} 26. Rf1 {[%clk
0:00:11.4]} 26... Qd3 {[%clk 0:00:50.9]} 27. Qf3 {[%clk 0:00:10.5]} 27... Rf8
{[%clk 0:00:48.6]} 28. Bf4 {[%clk 0:00:05.1]} 28... Qxf3 {[%clk 0:00:47.9]} 29.
Rxf3 {[%clk 0:00:04.9]} 29... g5 {[%clk 0:00:47.9]} 30. Kg2 {[%clk 0:00:02.5]}
30... Rxf4 {[%clk 0:00:47.2]} 31. Re3 {[%clk 0:00:02.3]} 31... Be5 {[%clk
0:00:47.7]} 0-1

[Event "Early-Titled-Tuesday-Blitz-March-12-2024"]
[Site "Chess.com"]
[Date "2024.03.12"]
[Round "11"]
[White "scrambleyourbrain"]
[Black "Viktor_Poddubnyi"]
[Result "1-0"]
[WhiteElo "2393"]
[BlackElo "2268"]
[TimeControl "180+1"]
[EndTime "10:02:50 PDT"]
[Termination "scrambleyourbrain won on time"]

1. e4 {[%clk 0:03:00.9]} 1... g6 {[%clk 0:02:59.7]} 2. d4 {[%clk 0:03:00.4]}
2... Bg7 {[%clk 0:03:00.3]} 3. Nf3 {[%clk 0:02:59.8]} 3... d6 {[%clk 0:03:00.5]}
4. Nc3 {[%clk 0:03:00.1]} 4... Nf6 {[%clk 0:02:59.1]} 5. Bd3 {[%clk 0:03:00]}
5... Nc6 {[%clk 0:02:56.9]} 6. O-O {[%clk 0:02:59.9]} 6... Bg4 {[%clk
0:02:49.1]} 7. Be3 {[%clk 0:02:57.5]} 7... e5 {[%clk 0:02:43.9]} 8. dxe5 {[%clk
0:02:54.8]} 8... Nxe5 {[%clk 0:02:39.5]} 9. Be2 {[%clk 0:02:54.9]} 9... Bxf3
{[%clk 0:02:27.2]} 10. Bxf3 {[%clk 0:02:54]} 10... Nxf3+ {[%clk 0:02:25.3]} 11.
Qxf3 {[%clk 0:02:53.7]} 11... O-O {[%clk 0:02:25.6]} 12. Rad1 {[%clk 0:02:53.9]}
12... Nd7 {[%clk 0:02:17.2]} 13. Bd4 {[%clk 0:02:43.9]} 13... Ne5 {[%clk
0:02:14.2]} 14. Qe2 {[%clk 0:02:42.8]} 14... Re8 {[%clk 0:01:57.8]} 15. f4
{[%clk 0:02:40.9]} 15... Nd7 {[%clk 0:01:49.6]} 16. Bxg7 {[%clk 0:02:41.4]}
16... Kxg7 {[%clk 0:01:50.1]} 17. f5 {[%clk 0:02:41.8]} 17... Ne5 {[%clk
0:01:22]} 18. Qe3 {[%clk 0:02:29]} 18... f6 {[%clk 0:01:00.7]} 19. Nd5 {[%clk
0:02:24.4]} 19... c6 {[%clk 0:00:52.7]} 20. Nf4 {[%clk 0:02:23.1]} 20... Qb6
{[%clk 0:00:47.7]} 21. Qxb6 {[%clk 0:02:18.7]} 21... axb6 {[%clk 0:00:48.6]} 22.
Rxd6 {[%clk 0:02:16.5]} 22... Rxa2 {[%clk 0:00:43.9]} 23. fxg6 {[%clk
0:02:07.7]} 23... hxg6 {[%clk 0:00:29.7]} 24. Ne6+ {[%clk 0:02:06.5]} 24... Kf7
{[%clk 0:00:16.8]} 25. Ng5+ {[%clk 0:02:05.6]} 25... Kg7 {[%clk 0:00:15.9]} 26.
Rdxf6 {[%clk 0:02:03.7]} 26... Rxb2 {[%clk 0:00:15.2]} 27. Ne6+ {[%clk
0:02:03.4]} 27... Kh7 {[%clk 0:00:05.6]} 28. c3 {[%clk 0:01:32.4]} 28... Re2
{[%clk 0:00:02.7]} 29. h3 {[%clk 0:01:28.6]} 29... b5 {[%clk 0:00:02.5]} 30.
Ng5+ {[%clk 0:01:18]} 30... Kg7 {[%clk 0:00:01.7]} 31. h4 {[%clk 0:01:15.5]}
31... Re3 {[%clk 0:00:01.2]} 32. Ne6+ {[%clk 0:01:13.2]} 32... Kh7 {[%clk
0:00:01.8]} 33. Ng5+ {[%clk 0:01:12.3]} 33... Kg7 {[%clk 0:00:01.9]} 34. Rd6
{[%clk 0:01:08.9]} 34... Re7 {[%clk 0:00:01.4]} 35. Ne6+ {[%clk 0:01:03.7]}
35... Kh7 {[%clk 0:00:01.9]} 36. Nf8+ {[%clk 0:01:03]} 36... Kg7 {[%clk
0:00:01.6]} 37. Ne6+ {[%clk 0:01:01.7]} 37... Kh7 {[%clk 0:00:02.1]} 38. Nc5
{[%clk 0:01:02.3]} 1-0

[Event "Early-Titled-Tuesday-Blitz-March-12-2024"]
[Site "Chess.com"]
[Date "2024.03.12"]
[Round "11"]
[White "Rainbow2014"]
[Black "Actuary44"]
[Result "0-1"]
[WhiteElo "2424"]
[BlackElo "2514"]
[TimeControl "180+1"]
[EndTime "10:02:57 PDT"]
[Termination "Actuary44 won by resignation"]

1. e4 {[%clk 0:02:48.9]} 1... b6 {[%clk 0:03:00.3]} 2. d4 {[%clk 0:02:46.3]}
2... Bb7 {[%clk 0:03:00.8]} 3. Nc3 {[%clk 0:02:46.1]} 3... e6 {[%clk 0:03:01.3]}
4. Nf3 {[%clk 0:02:46.1]} 4... Nf6 {[%clk 0:03:01.9]} 5. Bd3 {[%clk 0:02:46]}
5... d5 {[%clk 0:03:02.5]} 6. exd5 {[%clk 0:02:43.6]} 6... Nxd5 {[%clk
0:03:02.7]} 7. Nxd5 {[%clk 0:02:35.4]} 7... Qxd5 {[%clk 0:03:01.9]} 8. O-O
{[%clk 0:02:36.3]} 8... Bd6 {[%clk 0:03:01.1]} 9. Re1 {[%clk 0:02:25.7]} 9...
Qh5 {[%clk 0:03:00.8]} 10. Be4 {[%clk 0:02:24.5]} 10... Bxe4 {[%clk 0:03:00.9]}
11. Rxe4 {[%clk 0:02:24.3]} 11... O-O {[%clk 0:02:58]} 12. Bf4 {[%clk
0:02:19.4]} 12... f5 {[%clk 0:02:47.4]} 13. Bxd6 {[%clk 0:02:19]} 13... fxe4
{[%clk 0:02:47.4]} 14. Bxf8 {[%clk 0:02:19.3]} 14... exf3 {[%clk 0:02:47.5]} 15.
Ba3 {[%clk 0:02:12.7]} 15... Nc6 {[%clk 0:02:41.4]} 16. c3 {[%clk 0:02:02.7]}
16... e5 {[%clk 0:02:23.7]} 17. d5 {[%clk 0:01:54.8]} 17... Rd8 {[%clk
0:02:22.5]} 18. Qxf3 {[%clk 0:01:33.8]} 18... Qxf3 {[%clk 0:02:21.9]} 19. gxf3
{[%clk 0:01:34.7]} 19... Rxd5 {[%clk 0:02:22.1]} 20. Re1 {[%clk 0:01:34.1]}
20... Kf7 {[%clk 0:02:21]} 21. Re4 {[%clk 0:01:30.6]} 21... Rd1+ {[%clk
0:02:15.6]} 22. Kg2 {[%clk 0:01:30.5]} 22... Ra1 {[%clk 0:02:16.5]} 23. Rc4
{[%clk 0:01:30]} 23... Nd8 {[%clk 0:02:05.7]} 24. Rxc7+ {[%clk 0:01:30.9]} 24...
Kg6 {[%clk 0:02:03.7]} 25. Rxa7 {[%clk 0:01:27.5]} 25... Ne6 {[%clk 0:02:03.9]}
26. f4 {[%clk 0:01:23.3]} 26... Nxf4+ {[%clk 0:01:50.3]} 27. Kf3 {[%clk
0:01:22.8]} 27... Rxa2 {[%clk 0:01:50]} 28. Ke4 {[%clk 0:01:10.9]} 28... Ra1
{[%clk 0:01:33.9]} 29. Ra6 {[%clk 0:01:04.6]} 29... Re1+ {[%clk 0:01:31.6]} 30.
Kf3 {[%clk 0:01:05.1]} 30... Nd5 {[%clk 0:01:27.6]} 31. Bc5 {[%clk 0:01:01.6]}
31... e4+ {[%clk 0:01:27.4]} 32. Kg2 {[%clk 0:00:53.3]} 32... Kf5 {[%clk
0:01:19.6]} 33. Be3 {[%clk 0:00:47.2]} 33... Re2 {[%clk 0:01:10]} 34. Kf1 {[%clk
0:00:43.6]} 34... Rxb2 {[%clk 0:01:07.3]} 35. c4 {[%clk 0:00:38.6]} 35... Nxe3+
{[%clk 0:00:54.5]} 36. fxe3 {[%clk 0:00:38.2]} 36... Kg4 {[%clk 0:00:53.9]} 37.
Ra7 {[%clk 0:00:31.9]} 37... Kf3 {[%clk 0:00:48.2]} 38. Rf7+ {[%clk 0:00:30.1]}
38... Kxe3 {[%clk 0:00:48.1]} 39. Rxg7 {[%clk 0:00:30.4]} 39... Rxh2 {[%clk
0:00:46.9]} 40. Kg1 {[%clk 0:00:29.6]} 40... Rc2 {[%clk 0:00:44.5]} 41. Rxh7
{[%clk 0:00:28.3]} 41... Rxc4 {[%clk 0:00:44.5]} 42. Rb7 {[%clk 0:00:27.5]}
42... Rb4 {[%clk 0:00:44.7]} 43. Kg2 {[%clk 0:00:28]} 43... Rb2+ {[%clk
0:00:44.1]} 44. Kg3 {[%clk 0:00:27.8]} 44... b5 {[%clk 0:00:39.4]} 0-1